fUST/lending_fUST_20240317
["ID","MTS","AMOUNT","RATE_DAILY","PERIOD"]
[319340408,1710675044583,-986.85,0.0001863,2]
[319340410,1710675044599,-500.0,0.0001863,2]
[319340412,1710675044608,-500.0,0.0001863,2]
[319340414,1710675044617,-986.85,0.0001863,2]
[319340416,1710675044625,-500.0,0.0001863,2]
[319340418,1710675044634,-986.85,0.0001863,2]
[319340420,1710675044642,-500.0,0.0001863,2]
[319340422,1710675044651,-500.0,0.0001863,2]
[319340424,1710675044660,-500.0,0.0001863,2]
[319340426,1710675044668,-986.85,0.0001863,2]
[319340428,1710675044679,-500.0,0.0001863,2]
[319340430,1710675044688,-986.85,0.0001863,2]
[319340432,1710675044697,-500.0,0.0001863,2]
[319340434,1710675044706,-500.0,0.0001863,2]
[319340435,1710675044715,-986.85,0.0001863,2]
[319340437,1710675044724,-471.7024503,0.0001863,2]
[319340440,1710675044733,-500.0,0.0001863,2]
[319340442,1710675044743,-986.85,0.0001863,2]
[319340444,1710675044752,-500.0,0.0001863,2]
[319340445,1710675044764,-986.85,0.0001863,2]
[319340448,1710675044775,-500.0,0.0001863,2]
[319340450,1710675044785,-986.85,0.0001863,2]
[319340452,1710675044794,-500.0,0.0001863,2]
[319340454,1710675044804,-500.0,0.0001863,2]
[319340456,1710675044815,-500.0,0.0001863,2]
[319340458,1710675044824,-986.92848379,0.0001863,2]
[319340459,1710675044833,-500.0,0.0001863,2]
[319340461,1710675044844,-500.0,0.0001863,2]
[319340464,1710675044854,-500.0,0.0001863,2]
[319340466,1710675044863,-477.7172666,0.0001863,2]
[319340468,1710675044873,-500.0,0.0001863,2]
[319340469,1710675044882,-500.0,0.0001863,2]
[319340472,1710675044892,-500.0,0.0001863,2]
[319340474,1710675044901,-500.0,0.0001863,2]
[319340476,1710675044912,-500.0,0.0001863,2]
[319340477,1710675044926,-500.0,0.0001863,2]
[319340479,1710675044937,-500.0,0.0001863,2]
[319340481,1710675044946,-501.11761868,0.0001863,2]
[319340483,1710675044957,-500.0,0.0001863,2]
[319340485,1710675044966,-500.0,0.0001863,2]
[319340487,1710675044978,-500.0,0.0001863,2]
[319340489,1710675044987,-500.0,0.0001863,2]
[319340491,1710675044997,-476.48151663,0.0001863,2]
[319340493,1710675045006,-2201.37,0.0001863,2]
[319340495,1710675045016,-2201.37,0.0001863,2]
[319340497,1710675045027,-2201.37,0.0001863,2]
[319340499,1710675045037,-2201.37,0.0001863,2]
[319340501,1710675045046,-2201.37,0.0001863,2]
[319340503,1710675045055,-2201.37,0.0001863,2]
[319340505,1710675045064,-2201.37,0.0001863,2]
[319340507,1710675045074,-2201.37,0.0001863,2]
[319340509,1710675045083,-2201.37,0.0001863,2]
[319340511,1710675045094,-2201.37,0.0001863,2]
[319340513,1710675045103,-2201.37,0.0001863,2]
[319340515,1710675045112,-2201.37,0.0001863,2]
[319340517,1710675045121,-2201.37,0.0001863,2]
[319340519,1710675045130,-2201.37,0.0001863,2]
[319340521,1710675045139,-2201.37,0.0001863,2]
[319340524,1710675045149,-2201.37,0.0001863,2]
[319340526,1710675045158,-2201.37,0.0001863,2]
[319340528,1710675045167,-2201.37,0.0001863,2]
[319340529,1710675045176,-2201.37,0.0001863,2]
[319340532,1710675045186,-2201.37,0.0001863,2]
[319340533,1710675045194,-2201.37,0.0001863,2]
[319340535,1710675045203,-2201.37,0.0001863,2]
[319340537,1710675045212,-2201.37,0.0001863,2]
[319340540,1710675045222,-2201.48858306,0.0001863,2]
[319340542,1710675045231,-500.0,0.0001863,2]
[319340543,1710675045241,-530.73048034,0.0001863,2]
[319340545,1710675045250,-500.0,0.0001863,2]
[319340547,1710675045259,-500.0,0.0001863,2]
[319340549,1710675045267,-500.0,0.0001863,2]
[319340552,1710675045277,-500.0,0.0001863,2]
[319340553,1710675045286,-500.0,0.0001863,2]
[319340555,1710675045295,-500.0,0.0001863,2]
[319340557,1710675045304,-500.0,0.0001863,2]
[319340559,1710675045313,-500.0,0.0001863,2]
[319340562,1710675045323,-344.10581342,0.0001863,2]
[319340564,1710675045332,-155.33194453,0.0001863,2]
[319340565,1710675045343,-832354.86213018,0.0001863,5]
[319340568,1710675045360,-2673.34003628,0.0001863,5]
[319340659,1710675569162,709.628771,0.00016506,2]
[319340660,1710675571127,-581.12694972,0.00017159,2]
[319340661,1710675571149,-154.98450155,0.0001716,2]
[319340662,1710675571169,-1044.12444618,0.00017161,2]
[319340663,1710675571190,-1044.12444618,0.00017166,2]
[319340664,1710675571211,-24900.0,0.00017342,2]
[319340665,1710675571231,-2000.0,0.00017378,2]
[319340666,1710675571252,-187.13672792,0.0001753,2]
[319340667,1710675571272,-2000.0,0.00017989,2]
[319340668,1710675571292,-197.04010283,0.0001853,2]
[319340669,1710675571313,-13856.96457476,0.0001853,2]
[319340670,1710675571338,-276.92818425,0.00018628,2]
[319340671,1710675571359,-1569.68954403,0.00018628,2]
[319340672,1710675571380,-455.21619354,0.00018628,2]
[319340673,1710675571402,-616.09927238,0.00018628,2]
[319340674,1710675571426,-806.41845803,0.00018628,2]
[319340675,1710675571447,-263.34560806,0.00018628,2]
[319340676,1710675571467,-438.86763809,0.00018629,3]
[319340677,1710675571490,-500.0,0.00018629,2]
[319340678,1710675571510,-501.14236167,0.00018629,2]
[319340679,1710675571532,-44431.79099081,0.0001863,5]
[319340680,1710675591698,8290.371229,0.00017063,2]
[319340681,1710675628788,5164.94391209,0.00016892,2]
[319340682,1710675644783,3835.05608791,0.00016892,2]
[319340683,1710675644813,580.52476985,0.00016892,2]
[319340684,1710675679515,8419.47523015,0.00016892,2]
[319340685,1710675684362,-7545.2153766,0.00016892,2]
[319340686,1710675684383,-19039.20049505,0.00016892,2]
[319340687,1710675684403,-596.82810056,0.0001706,2]
[319340688,1710675684423,-154.98450155,0.00017061,2]
[319340689,1710675684443,-404.9506809,0.00017061,2]
[319340690,1710675684463,-381.92699789,0.00017062,2]
[319340691,1710675684483,-530.55719361,0.00017062,2]
[319340692,1710675684502,-5674.23097965,0.00017063,2]
[319340693,1710675684523,-154.98450155,0.00018442,2]
[319340694,1710675684542,-581.12694972,0.00018443,2]
[319340695,1710675684563,-25252.39779218,0.00018444,2]
[319340696,1710675684582,-558.82617846,0.00018628,2]
[319340697,1710675684602,-1882.98558379,0.00018628,2]
[319340698,1710675684621,-155.01085076,0.00018628,2]
[319340699,1710675684641,-639.33425979,0.00018628,2]
[319340700,1710675684661,-155.01085076,0.00018628,2]
[319340701,1710675684684,-212.20893555,0.00018628,2]
[319340702,1710675684703,-1475.54009242,0.00018628,2]
[319340703,1710675684723,-910.43238708,0.00018628,2]
[319340704,1710675684743,-155.01085076,0.00018628,2]
[319340705,1710675684762,-331.50911962,0.00018628,2]
[319340706,1710675684789,-1569.68954403,0.00018628,2]
[319340707,1710675684808,-155.01085076,0.00018628,2]
[319340708,1710675684827,-155.01085076,0.00018628,2]
[319340709,1710675684847,-616.4741109,0.00018628,2]
[319340710,1710675684867,-15269.62310312,0.00018629,2]
[319340711,1710675684887,-500.0,0.00018629,2]
[319340712,1710675684906,-344.41728785,0.00018629,2]
[319340713,1710675684928,-16921.87678697,0.0001863,2]
[319340714,1710675684952,-3337.62478736,0.0001863,5]
[319340715,1710675725471,9000.0,0.00016792,2]
[319340716,1710675749472,-258.495449,0.00026575,64]
[319340717,1710675749481,-258.495449,0.00026575,70]
[319340718,1710675749492,-258.495449,0.00026575,76]
[319340719,1710675749501,-258.495449,0.00026575,82]
[319340720,1710675749509,-258.495449,0.00026575,88]
[319340721,1710675749519,-258.495449,0.00026575,95]
[319340722,1710675749528,-258.495449,0.00026575,101]
[319340723,1710675749536,-258.495449,0.00026575,107]
[319340724,1710675749545,-258.495449,0.00026575,113]
[319340725,1710675749554,-258.495449,0.00026575,120]
[319340726,1710675749563,-7824.82109818,0.00027,120]
[319340727,1710675749573,-206.0,0.00028,120]
[319340728,1710675749582,-268.0,0.0003,120]
[319340729,1710675749592,-417.43058652,0.0003,120]
[319340730,1710675749601,-632.07783866,0.00033,120]
[319340731,1710675749610,-1562.94074369,0.00033,120]
[319340732,1710675749619,-20503.77524295,0.00034898,120]
[319340733,1710675760696,-6214.28595768,0.00016792,2]
[319340734,1710675760716,-381.70483715,0.00018628,2]
[319340735,1710675760736,-155.03719997,0.00018628,2]
[319340736,1710675760759,-308.68379048,0.00018628,2]
[319340737,1710675760778,-581.12694972,0.00018628,2]
[319340738,1710675760799,-404.7067592,0.00018629,2]
[319340739,1710675760824,-596.47637448,0.00018629,2]
[319340740,1710675760845,-39051.97813132,0.00018629,2]
[319340795,1710676232111,-581.12694972,0.00016908,2]
[319340797,1710676232121,-304.53762624,0.00016909,2]
[319340798,1710676232130,-581.12694972,0.00016911,2]
[319340800,1710676232140,-354.814385,0.00017083,2]
[319340802,1710676232150,-4122.4050358,0.00017536,2]
[319340804,1710676232159,-40880.66341073,0.0001763,2]
[319340806,1710676232171,-509.71,0.0001763,2]
[319340989,1710676238070,-6317.17945466,0.0001763,2]
[319340991,1710676238080,-24900.0,0.00017631,2]
[319340993,1710676238090,-5164.94391209,0.00018443,2]
[319340995,1710676238099,-155.82238152,0.00018628,2]
[319340997,1710676238108,-3333.40106808,0.00018629,2]
[319340999,1710676238120,-301.63340325,0.00018629,2]
[319341037,1710676242111,-975.05609561,0.00017454,2]
[319341038,1710676242120,-5744.73089052,0.00018629,2]
[319341041,1710676242180,-5808.90019188,0.00018629,2]
[319341043,1710676242194,-3850.53494132,0.00018629,2]
[319341044,1710676242203,-2073.28348585,0.00018629,2]
[319341046,1710676242212,-15964.69060675,0.00018629,2]
[319341047,1710676242222,-154.98450155,0.00018629,2]
[319341048,1710676242231,-1597.9651197,0.0001863,5]
[319341049,1710676242245,-31917.53404311,0.0001863,5]
[319341050,1710676242259,-1441.98154231,0.0001863,5]
[319341051,1710676242272,-10000.0,0.0001863,5]
[319341110,1710676243085,-3929.79743978,0.0001863,5]
[319341377,1710676246619,-498.60870396,0.0001779,2]
[319341379,1710676304642,2138.91216609,0.000167,2]
[319341381,1710676349859,5164.94391209,0.00016533,2]
[319341382,1710676350489,1696.14392182,0.000167,2]
[319341383,1710676367948,5164.94391209,0.00016533,2]
[319341384,1710676385970,2374.40451653,0.00016533,2]
[319341385,1710676393597,1460.65157138,0.00016533,2]
[319341386,1710676396047,-14504.03903537,0.00016533,2]
[319341387,1710676396069,-2059.96096463,0.000167,2]
[319341388,1710676516847,-616.65952365,0.00016527,2]
[319341389,1710676516870,-1570.14224023,0.00016528,2]
[319341390,1710676516891,-581.12694972,0.00016529,2]
[319341391,1710676516914,-154.98450155,0.0001653,2]
[319341392,1710676516937,-2073.28348585,0.00016533,2]
[319341393,1710676516962,-532.221578,0.00016669,2]
[319341394,1710676516984,-15964.69060675,0.000167,2]
[319341395,1710676517007,-16076.89111425,0.000167,2]
[319341396,1710676714770,-1883.57361986,0.00016598,2]
[319341397,1710676714790,-581.12694972,0.00016598,2]
[319341398,1710676714810,-814.25044424,0.00016598,2]
[319341399,1710676714832,-8290.371229,0.00016599,2]
[319341400,1710676714852,-2287.67775718,0.000167,2]
[319341415,1710677147965,9000.0,0.0001633,2]
[319341416,1710677147996,4436.0508517,0.0001633,2]
[319341417,1710677241644,-581.12694972,0.00016599,2]
[319341418,1710677241664,-154.98450155,0.00016599,2]
[319341419,1710677241685,-850.00014654,0.00016599,3]
[319341420,1710677241706,-36703.3,0.000166,2]
[319341421,1710677241728,-266.110789,0.00016873,2]
[319341422,1710677242448,154.98450155,0.00016598,2]
[319341423,1710677243496,341.49311164,0.00016598,2]
[319341424,1710677246591,3537.66792424,0.0001633,2]
[319341458,1710677432186,-404.9506809,0.00017502,2]
[319341460,1710677432196,-154.98450155,0.00017503,2]
[319341462,1710677432205,-283.69399642,0.00017503,2]
[319341464,1710677432219,-1286.44824381,0.00017503,2]
[319341466,1710677432228,-581.12694972,0.00017504,2]
[319341468,1710677432237,-266.110789,0.00017506,2]
[319341470,1710677432247,-154.98450155,0.0001779,2]
[319341472,1710677432256,-4392.46757139,0.00018393,2]
[319341612,1710677440352,-154.98450155,0.00017501,2]
[319341613,1710677440369,-1660.51203761,0.00018393,2]
[319341657,1710677443440,-1444.55970511,0.00018393,2]
[319341659,1710677443450,-17805.44029489,0.00018496,2]
[319341662,1710677443462,-5923.9760055,0.00018496,2]
[319341664,1710677443474,-7166.92799467,0.00018496,2]
[319341916,1710677446325,-1346.75,0.00018496,2]
[319341921,1710677446532,-0.44294617,0.00018496,2]
[319341926,1710677664262,300.0,0.00025,120]
[319341969,1710678632409,-1570.14224023,0.00017053,2]
[319341971,1710678632420,-581.12694972,0.00017053,2]
[319341973,1710678632429,-1215.23494211,0.00017054,2]
[319341974,1710678632442,-668.33867775,0.00017054,2]
[319341975,1710678632452,-219.89873222,0.00017054,2]
[319342231,1710678638459,-339.0903779,0.00017054,2]
[319342232,1710678638469,-154.98450155,0.00017055,2]
[319342233,1710678638478,-1732.4216985,0.00017058,2]
[319342234,1710678638487,-3814.0,0.00017471,2]
[319342235,1710678638497,-1000.0,0.00018495,3]
[319342236,1710678638507,-1000.0,0.00018495,5]
[319342237,1710678638518,-15436.5300272,0.00018496,2]
[319342238,1710678638528,-6494.86772729,0.00018497,2]
[319342239,1710678638538,-1817.25317765,0.000185,2]
[319342240,1710678638549,-5500.84705483,0.000185,2]
[319342283,1710678643446,-639.5025935,0.00017053,2]
[319342285,1710678643455,-1475.97890388,0.00017053,2]
[319342287,1710678643464,-4374.05851262,0.000185,2]
[319342509,1710679414198,171.01369426,0.00016348,2]
[319342510,1710679422021,154.98450155,0.00016347,2]
[319342511,1710679430183,154.98450155,0.00016347,2]
[319342512,1710679438060,172.59672644,0.00016345,2]
[319342513,1710679446284,372.70180026,0.00016345,2]
[319342564,1710679632700,171.01369426,0.0001617,2]
[319342565,1710679641750,171.01369426,0.0001617,2]
[319342566,1710679649820,171.01369426,0.0001617,2]
[319342567,1710679657656,154.98450155,0.00016169,2]
[319342576,1710679666395,581.12694972,0.00016168,2]
[319342626,1710679674312,581.12694972,0.00016168,2]
[319342627,1710679682540,639.5025935,0.00016167,2]
[319342628,1710679691405,172.59672644,0.00016166,2]
[319342629,1710679700144,343.6104207,0.00016166,2]
[319342630,1710679709448,343.6104207,0.00016166,2]
[319342631,1710679717535,343.6104207,0.00016166,2]
[319342688,1710679832639,-171.01369426,0.00016322,2]
[319342690,1710679832649,-172.59672644,0.00016323,2]
[319342692,1710679832658,-639.5025935,0.00016324,2]
[319342694,1710679832670,-154.98450155,0.00016325,2]
[319342697,1710679832679,-581.12694972,0.00016325,2]
[319342700,1710679832689,-900.20243504,0.00016825,2]
[319342816,1710679838698,-4271.22323496,0.00016825,2]
[319342818,1710679838708,-155.43298369,0.00017054,2]
[319342820,1710679838716,-3962.31097092,0.000185,2]
[319342822,1710679838728,-2219.7529169,0.000185,2]
[319342824,1710679838737,-197.04010283,0.0001853,2]
[319342826,1710679838747,-373.66487877,0.00018628,2]
[319342828,1710679838756,-188.86635313,0.00018628,2]
[319342830,1710679838766,-596.47637448,0.00018628,2]
[319342832,1710679838775,-378.11462493,0.00018628,2]
[319342834,1710679838784,-155.01085076,0.00018628,2]
[319342836,1710679838793,-381.70483715,0.00018628,2]
[319342838,1710679838802,-308.68379048,0.00018628,2]
[319342840,1710679838812,-155.01085076,0.00018628,2]
[319342842,1710679838820,-212.20893555,0.00018628,2]
[319342844,1710679838830,-155.01085076,0.00018628,2]
[319342846,1710679838839,-238.75255603,0.00018628,2]
[319342848,1710679838848,-806.41845803,0.00018628,2]
[319342850,1710679838856,-2614.13768779,0.00018628,2]
[319342852,1710679838868,-12655.48541533,0.00018628,2]
[319342854,1710679838877,-615.91385963,0.00018628,2]
[319342856,1710679838887,-331.50911962,0.00018628,2]
[319342858,1710679838896,-292.17966854,0.00018628,2]
[319342860,1710679838905,-155.58652772,0.00018628,2]
[319342862,1710679838914,-551.39813638,0.00018628,2]
[319342864,1710679838925,-208.43582616,0.00018628,2]
[319342865,1710679838934,-529.27486775,0.00018628,2]
[319342866,1710679838942,-155.39149547,0.00018628,2]
[319342867,1710679838951,-438.86763809,0.00018628,3]
[319342868,1710679838960,-289.73782504,0.00018628,2]
[319342869,1710679838969,-404.34988811,0.00018628,2]
[319342870,1710679838978,-224.47928165,0.00018628,2]
[319342871,1710679838986,-155.99696445,0.00018628,2]
[319342872,1710679838995,-155.63494245,0.00018628,2]
[319342873,1710679839004,-155.36523752,0.00018628,2]
[319342874,1710679839013,-296.48562557,0.00018628,2]
[319342875,1710679839021,-3620.05121856,0.00018628,2]
[319342876,1710679839033,-1963.92372708,0.00018628,2]
[319342877,1710679839042,-156.96235986,0.00018628,2]
[319343033,1710679840718,-2645.61667471,0.00018628,2]
[319343035,1710679840727,-160.22573348,0.00018628,2]
[319343037,1710679840736,-625.29704112,0.00018628,2]
[319343039,1710679840745,-262.16953592,0.00018628,2]
[319343041,1710679840755,-155.67709086,0.00018628,2]
[319343043,1710679840764,-273.46214233,0.00018628,2]
[319343045,1710679840773,-558.42680068,0.00018628,2]
[319343047,1710679840782,-1337.20077163,0.00018628,2]
[319343049,1710679840791,-149.88558932,0.00018628,2]
[319343069,1710679843919,-172.30064643,0.00018628,2]
[319343070,1710679843932,-91.91124908,0.00018628,2]
[319343071,1710679843946,-63.48444483,0.00018628,2]
[319343072,1710679843958,-155.65016,0.00018628,2]
[319343073,1710679843969,-233.16769096,0.00018628,2]
[319343074,1710679843981,-155.94443387,0.00018628,2]
[319343075,1710679843992,-179.01392992,0.00018628,2]
[319343076,1710679844002,-207.23030283,0.00018628,2]
[319343077,1710679844012,-157.37827837,0.00018628,2]
[319343078,1710679844022,-542.59844934,0.00018628,2]
[319343079,1710679844032,-616.91646955,0.00018629,2]
[319343080,1710679844044,-500.0,0.00018629,2]
[319343081,1710679844055,-198.08568717,0.00018629,2]
[319343082,1710679844065,-500.0,0.00018629,2]
[319343083,1710679844076,-501.14236167,0.00018629,2]
[319343084,1710679844087,-14974.31568949,0.0001863,5]
[319343113,1710679847789,-276.92818425,0.00018628,2]
[319343114,1710679847800,-36.52914273,0.00018628,2]
[319343115,1710680033357,-639.5025935,0.00017524,2]
[319343116,1710680033377,-191.74719797,0.00017525,2]
[319343117,1710680033399,-1953.59626345,0.00017525,2]
[319343118,1710680033423,-3148.33743373,0.00017525,2]
[319343119,1710680033446,-1044.12444618,0.00017526,2]
[319343120,1710680033469,-171.01369426,0.00017527,2]
[319343121,1710680033490,-47707.55286539,0.00017529,2]
[319343122,1710680033513,-14828.12550552,0.0001753,2]
[319343123,1710680100184,-154.98450155,0.00017354,2]
[319343124,1710680100206,-1845.01549845,0.00017355,2]
[319343139,1710680967119,323.54412637,0.00016244,2]
[319343140,1710680975764,155.0,0.00016243,2]
[319343141,1710680984506,155.0,0.00016243,2]
[319343142,1710680992338,2108.59626345,0.00016243,2]
[319343143,1710681000469,2108.59626345,0.00016243,2]
[319343144,1710681009700,476.05328092,0.00016243,2]
[319343154,1710681031842,-323.54412637,0.00016242,2]
[319343155,1710681031853,-1502.92816256,0.00016243,2]
[319343156,1710681031866,-129.61481997,0.00016243,2]
[319343157,1710681031875,-145.27444303,0.00016243,2]
[319343222,1710681037930,-155.0,0.00016241,2]
[319343224,1710681037939,-15819.41616372,0.00016243,2]
[319343226,1710681037949,-616.65952365,0.00016406,2]
[319343228,1710681037958,-155.0,0.00016406,2]
[319343230,1710681037968,-1953.59626345,0.00016407,2]
[319343232,1710681037977,-857.54289022,0.00016587,2]
[319343234,1710681037986,-3439.0426291,0.00016592,2]
[319343236,1710681037995,-620.79212932,0.00016758,2]
[319343238,1710681038005,-2000.0,0.00017134,2]
[319343240,1710681038014,-687.45797196,0.00017355,2]
[319343242,1710681038024,-2000.0,0.000175,2]
[319343244,1710681038033,-620.03960647,0.00017596,2]
[319343246,1710681038042,-2000.0,0.00017867,2]
[319343248,1710681038052,-2000.0,0.00018234,2]
[319343250,1710681038061,-154.98450155,0.00018441,2]
[319343252,1710681038070,-735.48053639,0.00018441,2]
[319343254,1710681038080,-2945.18638007,0.00018444,2]
[319343256,1710681038090,-6494.86772729,0.00018497,2]
[319343258,1710681038099,-376.22196736,0.0001853,2]
[319343260,1710681038108,-18452.82931538,0.0001853,2]
[319343262,1710681038117,-155.20931443,0.00018609,2]
[319343264,1710681038127,-937.06777198,0.00018609,2]
[319343265,1710681038135,-155.54682666,0.00018628,2]
[319343267,1710681038144,-3501.36328965,0.00018628,2]
[319343269,1710681038153,-609.97756049,0.00018628,2]
[319343271,1710681038162,-429.45007321,0.00018628,2]
[319343273,1710681038171,-381.81591752,0.00018628,2]
[319343275,1710681038180,-301.63340325,0.00018628,2]
[319343277,1710681038190,-155.3443481,0.00018628,2]
[319343279,1710681038199,-155.99696445,0.00018628,2]
[319343281,1710681038208,-295.89554368,0.00018628,2]
[319343283,1710681038217,-156.00200654,0.00018628,2]
[319343285,1710681038227,-228.26916841,0.00018628,2]
[319343287,1710681038236,-268.5783834,0.00018628,2]
[319343289,1710681038245,-806.41845803,0.00018628,2]
[319343291,1710681038254,-155.45729828,0.00018628,2]
[319343293,1710681038264,-219.20143752,0.00018628,2]
[319343295,1710681038273,-155.15883925,0.00018628,2]
[319343297,1710681038282,-1473.89685445,0.00018628,2]
[319343298,1710681038292,-250.75100915,0.00018628,2]
[319343299,1710681038301,-322.29524227,0.00018628,2]
[319343300,1710681038310,-170.44504928,0.00018628,2]
[319343301,1710681038319,-237.68160555,0.00018628,2]
[319343302,1710681038327,-181.04658595,0.00018628,2]
[319343303,1710681038338,-1812.23156313,0.00018628,2]
[319343304,1710681038366,-357.545,0.00018628,2]
[319343305,1710681038412,155.0,0.00016079,2]
[319343328,1710681039962,-3329.85,0.00018628,2]
[319343329,1710681039985,-3164.41573708,0.00018628,2]
[319343330,1710681039995,-179.81023046,0.00018628,2]
[319343331,1710681040005,-25058.95388204,0.00018628,5]
[319343332,1710681040015,-258.92907159,0.00018628,2]
[319343333,1710681040024,-212.15239579,0.00018628,2]
[319343334,1710681040034,-274.54116412,0.00018628,2]
[319343335,1710681040045,-1445.23380236,0.00018628,2]
[319343336,1710681040054,-324.95943539,0.00018628,2]
[319343337,1710681040065,-331.16917641,0.00018628,2]
[319343338,1710681040074,-155.21203541,0.00018628,2]
[319343339,1710681040083,-547.86352554,0.00018628,2]
[319343340,1710681040095,-298.431,0.00018628,2]
[319343341,1710681040104,-311.0272358,0.00018628,2]
[319343342,1710681040114,-155.10547172,0.00018628,2]
[319343343,1710681040124,-524.21401933,0.00018628,2]
[319343344,1710681040134,-280.02709424,0.00018628,2]
[319343345,1710681040143,-198.08201922,0.00018628,2]
[319343346,1710681040153,-705.30362658,0.00018628,2]
[319343347,1710681040162,-155.70110745,0.00018628,2]
[319343348,1710681040171,-247.23709179,0.00018628,2]
[319343349,1710681040180,-289.89965351,0.00018628,2]
[319343350,1710681040190,-280.75210608,0.00018628,2]
[319343351,1710681040199,-1607.10940545,0.00018628,2]
[319343352,1710681040209,-210.69662867,0.00018628,2]
[319343353,1710681040218,-596.9322935,0.00018628,2]
[319343354,1710681040228,-155.36016986,0.00018628,2]
[319343355,1710681040238,-263.72389942,0.00018628,2]
[319343356,1710681040247,-338.76861919,0.00018628,2]
[319343357,1710681040256,-229.23332363,0.00018628,2]
[319343358,1710681040265,-173.5005532,0.00018628,2]
[319343359,1710681040276,-151.0,0.00018628,2]
[319343360,1710681040285,-639.62044882,0.00018628,2]
[319343361,1710681040294,-3152.8068959,0.00018629,2]
[319343362,1710681040304,-1524.39968184,0.00018629,2]
[319343363,1710681040313,-151.0,0.00018629,2]
[319343364,1710681040323,-158.181088,0.00018629,2]
[319343365,1710681040332,-158.181088,0.00018629,2]
[319343366,1710681040342,-252.280578,0.00018629,2]
[319343367,1710681040351,-252.280578,0.00018629,2]
[319343368,1710681040360,-151.0,0.00018629,2]
[319343369,1710681040369,-151.0,0.00018629,2]
[319343370,1710681040378,-151.0,0.00018629,2]
[319343371,1710681040387,-151.0,0.00018629,2]
[319343372,1710681040396,-221.401945,0.00018629,2]
[319343373,1710681040405,-151.0,0.00018629,2]
[319343374,1710681040415,-4852.52621779,0.0001863,5]
[319343375,1710681040427,-809.55,0.0001863,5]
[319343449,1710681043099,-5977.20799998,0.0001863,5]
[319343515,1710681045918,-264.3625503,0.00018629,2]
[319343516,1710681045927,-34875.37911774,0.0001863,5]
[319343518,1710681045939,-1658383.40183364,0.0001863,5]
[319343520,1710681045948,-218.2189913,0.0001863,2]
[319343522,1710681045960,-154.9690062,0.0001863,2]
[319343524,1710681045969,-9497.70229493,0.0001863,2]
[319343526,1710681045978,-154.98450155,0.0001863,2]
[319343528,1710681045987,-228.53498416,0.0001863,2]
[319343530,1710681045997,-151.0,0.0001863,2]
[319343532,1710681046006,-158.181088,0.0001863,2]
[319343534,1710681046015,-158.181088,0.0001863,2]
[319343536,1710681046025,-252.280578,0.0001863,2]
[319343538,1710681046034,-252.280578,0.0001863,2]
[319343539,1710681046043,-151.0,0.0001863,2]
[319343541,1710681046053,-152.316673,0.0001863,2]
[319343543,1710681046062,-151.0,0.0001863,2]
[319343545,1710681046071,-151.0,0.0001863,2]
[319343547,1710681046080,-151.0,0.0001863,2]
[319343549,1710681046089,-151.0,0.0001863,2]
[319343551,1710681046100,-975.160819,0.00018637,2]
[319343552,1710681046109,-637.194004,0.00018637,2]
[319343554,1710681046118,-424.796003,0.00018637,2]
[319343556,1710681046127,-220.118406,0.00018637,2]
[319343558,1710681046137,-151.0,0.00018637,2]
[319343560,1710681046146,-151.0,0.00018637,2]
[319343562,1710681046155,-163.982218,0.00018637,2]
[319343564,1710681046164,-725.48835458,0.0001869,7]
[319343565,1710681046173,-250.663096,0.0001869,2]
[319343567,1710681046182,-158.181088,0.0001869,2]
[319343569,1710681046191,-158.181088,0.0001869,2]
[319343571,1710681046200,-252.280578,0.0001869,2]
[319343573,1710681046209,-252.280578,0.0001869,2]
[319343575,1710681046220,-155.27670732,0.000187,2]
[319343577,1710681046229,-883.113949,0.0001875,2]
[319343579,1710681046238,-1057.369705,0.0001875,2]
[319343581,1710681046247,-328.768917,0.0001875,2]
[319343582,1710681046255,-637.194004,0.00018867,2]
[319343584,1710681046264,-975.160819,0.00018867,2]
[319343586,1710681046273,-424.796003,0.00018867,2]
[319343588,1710681046282,-220.118406,0.00018867,2]
[319343590,1710681046291,-50000.0,0.000189,2]
[319343592,1710681046300,-229.39309831,0.000189,2]